fUSD/lending_fUSD_20250331
["ID","MTS","AMOUNT","RATE_DAILY","PERIOD"]
[356916913,1743432672380,-500.0,0.00047671,120]
[356916914,1743432672421,-500.0,0.00047671,120]
[356916915,1743432672579,-500.0,0.00047671,120]
[356916916,1743432672621,-537.20087615,0.00047671,120]
[356916917,1743432672664,-872.99,0.00047671,120]
[356916918,1743432672706,-500.0,0.00047671,120]
[356916919,1743432672750,-500.0,0.00047671,120]
[356916920,1743432672793,-235.94855255,0.00047671,120]
[356916921,1743432672834,-32410.28550947,0.000477,120]
[356916922,1743432672875,-500.0,0.00047945,120]
[356916923,1743432672914,-164.05,0.00047945,120]
[356916924,1743432672953,-500.0,0.00047945,120]
[356916925,1743432672993,-151.7,0.00047945,120]
[356916926,1743432673033,-500.0,0.00047945,120]
[356916927,1743432673076,-232.45,0.00047945,120]
[356916928,1743432673119,-564.05,0.00047945,120]
[356916929,1743432673161,-500.0,0.00047945,120]
[356916930,1743432673204,-500.0,0.00047945,120]
[356916931,1743432673251,-500.0,0.00047945,120]
[356916932,1743432673307,-440.65,0.00047945,120]
[356916933,1743432673360,-626.00120025,0.00047945,120]
[356916934,1743432673403,-500.0,0.00047945,120]
[356916935,1743432673447,-500.0,0.00047945,120]
[356916936,1743432673494,-500.0,0.00047945,120]
[356916937,1743432673536,-500.0,0.00047945,120]
[356916938,1743432673579,-500.0,0.00047945,120]
[356916939,1743432673622,-500.0,0.00047945,120]
[356916940,1743432673670,-328.5,0.00047945,120]
[356916941,1743432673715,-318.32049964,0.00047945,120]
[356916942,1743432673757,-500.0,0.00047945,120]
[356916943,1743432673801,-633.86923912,0.00047945,120]
[356916944,1743432673847,-500.0,0.00047945,120]
[356916945,1743432673891,-500.0,0.00047945,120]
[356916946,1743432673938,-500.0,0.00047945,120]
[356916947,1743432673981,-500.0,0.00047945,120]
[356916948,1743432674025,-500.0,0.00047945,120]
[356916949,1743432674067,-500.0,0.00047945,120]
[356916950,1743432674112,-545.23639358,0.00047945,120]
[356916951,1743432674155,-500.0,0.00047945,120]
[356916952,1743432674198,-500.0,0.00047945,120]
[356916953,1743432674243,-500.0,0.00047945,120]
[356916954,1743432674287,-500.0,0.00047945,120]
[356916955,1743432674331,-500.0,0.00047945,120]
[356916956,1743432674377,-500.0,0.00047945,120]
[356916957,1743432674424,-500.0,0.00047945,120]
[356916958,1743432674472,-500.0,0.00047945,120]
[356916959,1743432674519,-221.92963366,0.00047945,120]
[356916960,1743432674564,-500.0,0.00047945,120]
[356916961,1743432674612,-500.0,0.00047945,120]
[356916962,1743432674659,-500.0,0.00047945,120]
[356916963,1743432674706,-500.0,0.00047945,120]
[356916964,1743432674753,-500.0,0.00047945,120]
[356916965,1743432674805,-500.0,0.00047945,120]
[356916966,1743432674852,-500.0,0.00047945,120]
[356916967,1743432674898,-537.81,0.00047945,120]
[356916968,1743432674944,-500.0,0.00047945,120]
[356916969,1743432674990,-500.0,0.00047945,120]
[356916970,1743432675035,-567.44,0.00047945,120]
[356916971,1743432675080,-620.53,0.00047945,120]
[356916972,1743432675127,-1313.12,0.00047945,120]
[356916973,1743432675173,-500.0,0.00047945,120]
[356916974,1743432675219,-500.0,0.00047945,120]
[356916975,1743432675269,-500.0,0.00047945,120]
[356916976,1743432675317,-500.0,0.00047945,120]
[356916977,1743432675364,-500.0,0.00047945,120]
[356916978,1743432675410,-162.25000001,0.00047945,120]
[356916979,1743432675456,-500.0,0.00047945,120]
[356916980,1743432675504,-872.99,0.00047945,120]
[356916981,1743432675552,-500.0,0.00047945,120]
[356916982,1743432675605,-500.0,0.00047945,120]
[356916983,1743432675657,-150.0,0.00047953,30]
[356916984,1743432675706,-215.62227212,0.00047953,30]
[356916985,1743432675754,-150.0,0.00047953,30]
[356916986,1743432675802,-150.0,0.00047953,30]
[356916987,1743432675851,-336.95590723,0.00047953,30]
[356916988,1743432675901,-704.0670224,0.00047953,30]
[356916989,1743432675947,-184.90674977,0.00047953,30]
[356916990,1743432675996,-521.98432563,0.00047973,120]
[356916991,1743432676043,-54328.12416951,0.00048,120]
[356916992,1743432676092,-1002.322,0.00048155,82]
[356916993,1743432676143,-500.0,0.00048219,120]
[356916994,1743432676322,-500.0,0.00048219,120]
[356916995,1743432676369,-500.0,0.00048219,120]
[356916996,1743432676415,-500.0,0.00048219,120]
[356916997,1743432676461,-608.7,0.00048219,120]
[356916998,1743432676507,-500.0,0.00048219,120]
[356916999,1743432676555,-269.0862048,0.00048219,120]
[356917000,1743432676606,-500.0,0.00048219,120]
[356917001,1743432676656,-500.0,0.00048219,120]
[356917002,1743432676704,-500.0,0.00048219,120]
[356917003,1743432676749,-500.0,0.00048219,120]
[356917004,1743432676796,-500.0,0.00048219,120]
[356917005,1743432676840,-500.0,0.00048219,120]
[356917006,1743432676884,-500.0,0.00048219,120]
[356917007,1743432676928,-500.0,0.00048219,120]
[356917008,1743432676972,-500.0,0.00048219,120]
[356917009,1743432677016,-500.0,0.00048219,120]
[356917010,1743432677064,-500.0,0.00048219,120]
[356917011,1743432677108,-500.0,0.00048219,120]
[356917012,1743432677153,-492.94,0.00048219,120]
[356917013,1743432677197,-537.54327011,0.00048219,120]
[356917014,1743432677242,-500.0,0.00048219,120]
[356917015,1743432677289,-500.0,0.00048219,120]
[356917016,1743432677335,-500.0,0.00048219,120]
[356917017,1743432677379,-500.0,0.00048219,120]
[356917018,1743432677426,-500.0,0.00048219,120]
[356917019,1743432677472,-500.0,0.00048219,120]
[356917020,1743432677518,-500.0,0.00048219,120]
[356917021,1743432677562,-646.25470665,0.00048219,120]
[356917022,1743432677605,-500.0,0.00048219,120]
[356917023,1743432677655,-500.0,0.00048219,120]
[356917024,1743432677702,-500.0,0.00048219,120]
[356917025,1743432677745,-500.0,0.00048219,120]
[356917026,1743432677790,-500.0,0.00048219,120]
[356917027,1743432677834,-537.81,0.00048219,120]
[356917028,1743432677878,-500.0,0.00048219,120]
[356917029,1743432677918,-567.44,0.00048219,120]
[356917030,1743432677962,-620.53,0.00048219,120]
[356917031,1743432678004,-1313.12,0.00048219,120]
[356917032,1743432678046,-500.0,0.00048219,120]
[356917033,1743432678090,-500.0,0.00048219,120]
[356917034,1743432678137,-500.0,0.00048219,120]
[356917035,1743432678189,-500.0,0.00048219,120]
[356917036,1743432678237,-500.0,0.00048219,120]
[356917037,1743432678284,-645.24673619,0.00048219,120]
[356917038,1743432678331,-872.99,0.00048219,120]
[356917039,1743432678379,-500.0,0.00048219,120]
[356917040,1743432678426,-500.0,0.00048219,120]
[356917041,1743432678471,-500.0,0.00048493,120]
[356917042,1743432678516,-586.55,0.00048493,120]
[356917043,1743432678562,-500.0,0.00048493,120]
[356917044,1743432678608,-188.7,0.00048493,120]
[356917045,1743432678657,-500.0,0.00048493,120]
[356917046,1743432678703,-500.0,0.00048493,120]
[356917047,1743432678752,-438.6,0.00048493,120]
[356917048,1743432678803,-500.0,0.00048493,120]
[356917049,1743432678850,-500.0,0.00048493,120]
[356917050,1743432678894,-616.11277601,0.00048493,120]
[356917051,1743432678937,-500.0,0.00048493,120]
[356917052,1743432678981,-481.32088757,0.00048493,120]
[356917053,1743432679025,-500.0,0.00048493,120]
[356917054,1743432679071,-500.0,0.00048493,120]
[356917055,1743432679114,-576.75,0.00048493,120]
[356917056,1743432679163,-500.0,0.00048493,120]
[356917057,1743432679206,-500.0,0.00048493,120]
[356917058,1743432679250,-500.0,0.00048493,120]
[356917059,1743432679294,-500.0,0.00048493,120]
[356917060,1743432679337,-310.07965981,0.00048493,120]
[356917061,1743432679381,-500.0,0.00048493,120]
[356917062,1743432679425,-500.0,0.00048493,120]
[356917063,1743432679470,-500.0,0.00048493,120]
[356917064,1743432679514,-500.0,0.00048493,120]
[356917065,1743432679558,-500.0,0.00048493,120]
[356917066,1743432679602,-500.0,0.00048493,120]
[356917067,1743432679652,-500.0,0.00048493,120]
[356917068,1743432679697,-500.0,0.00048493,120]
[356917069,1743432679745,-228.33,0.00048493,120]
[356917070,1743432679888,-537.81,0.00048493,120]
[356917071,1743432679932,-500.0,0.00048493,120]
[356917072,1743432679974,-567.44,0.00048493,120]
[356917073,1743432680017,-620.53,0.00048493,120]
[356917074,1743432680059,-1313.12,0.00048493,120]
[356917075,1743432680106,-500.0,0.00048493,120]
[356917076,1743432680152,-500.0,0.00048493,120]
[356917077,1743432680195,-500.0,0.00048493,120]
[356917078,1743432680238,-500.0,0.00048493,120]
[356917079,1743432680280,-500.0,0.00048493,120]
[356917080,1743432680323,-872.99,0.00048493,120]
[356917081,1743432680365,-500.0,0.00048493,120]
[356917082,1743432680409,-500.0,0.00048493,120]
[356917083,1743432680450,-11004.28715209,0.000485,120]
[356917084,1743432680494,-745.0,0.000485,30]
[356917085,1743432680537,-968.0,0.000485,30]
[356917086,1743432680577,-178.27451004,0.00048535,120]
[356917087,1743432680620,-666.0,0.00048767,120]
[356917088,1743432680669,-666.0,0.00048767,120]
[356917089,1743432680711,-666.0,0.00048767,120]
[356917090,1743432680753,-469.5627632,0.00048767,120]
[356917091,1743432680796,-500.0,0.00048767,120]
[356917092,1743432680846,-361.15,0.00048767,120]
[356917093,1743432680892,-500.0,0.00048767,120]
[356917094,1743432680935,-500.0,0.00048767,120]
[356917095,1743432680977,-500.0,0.00048767,120]
[356917096,1743432681020,-500.0,0.00048767,120]
[356917097,1743432681060,-500.0,0.00048767,120]
[356917098,1743432681102,-500.0,0.00048767,120]
[356917099,1743432681142,-500.0,0.00048767,120]
[356917100,1743432681183,-406.9698454,0.00048767,120]
[356917101,1743432681223,-500.0,0.00048767,120]
[356917102,1743432681273,-500.0,0.00048767,120]
[356917103,1743432681318,-500.0,0.00048767,120]
[356917104,1743432681361,-301.92696119,0.00048767,120]
[356917105,1743432681406,-500.0,0.00048767,120]
[356917106,1743432681450,-500.0,0.00048767,120]
[356917107,1743432681493,-500.0,0.00048767,120]
[356917108,1743432681535,-500.0,0.00048767,120]
[356917109,1743432681581,-500.0,0.00048767,120]
[356917110,1743432681623,-500.0,0.00048767,120]
[356917111,1743432681666,-500.0,0.00048767,120]
[356917112,1743432681708,-537.81,0.00048767,120]
[356917113,1743432681750,-500.0,0.00048767,120]
[356917114,1743432681791,-567.44,0.00048767,120]
[356917115,1743432681833,-620.53,0.00048767,120]
[356917116,1743432681875,-1313.12,0.00048767,120]
[356917117,1743432681916,-500.0,0.00048767,120]
[356917118,1743432681959,-500.0,0.00048767,120]
[356917119,1743432682003,-500.0,0.00048767,120]
[356917120,1743432682045,-500.0,0.00048767,120]
[356917121,1743432682091,-500.0,0.00048767,120]
[356917122,1743432682139,-872.99,0.00048767,120]
[356917123,1743432682191,-500.0,0.00048767,120]
[356917124,1743432682239,-500.0,0.00048767,120]
[356917125,1743432682285,-44555.82005694,0.000488,120]
[356917126,1743432682330,-22042.50319778,0.000488,120]
[356917127,1743432682375,-889.47864048,0.00048906,120]
[356917128,1743432682418,-176.0,0.00049,120]
[356917129,1743432682459,-156.0,0.00049,120]
[356917130,1743432682507,-187324.92,0.00049,120]
[356917131,1743432682550,-500.0,0.00049041,120]
[356917132,1743432682591,-500.0,0.00049041,120]
[356917133,1743432682634,-500.0,0.00049041,120]
[356917134,1743432682676,-500.0,0.00049041,120]
[356917135,1743432682718,-500.0,0.00049041,120]
[356917136,1743432682771,-500.0,0.00049041,120]
[356917137,1743432682820,-509.17560472,0.00049041,120]
[356917138,1743432682862,-500.0,0.00049041,120]
[356917139,1743432682905,-500.0,0.00049041,120]
[356917140,1743432682947,-644.54,0.00049041,120]
[356917141,1743432682991,-500.0,0.00049041,120]
[356917142,1743432683034,-500.0,0.00049041,120]
[356917143,1743432683197,-500.0,0.00049041,120]
[356917144,1743432683248,-191.95250097,0.00049041,120]
[356917145,1743432683296,-500.0,0.00049041,120]
[356917146,1743432683341,-500.0,0.00049041,120]
[356917147,1743432683386,-500.0,0.00049041,120]
[356917148,1743432683431,-500.0,0.00049041,120]
[356917149,1743432683474,-537.81,0.00049041,120]
[356917150,1743432683526,-500.0,0.00049041,120]
[356917151,1743432683575,-567.44,0.00049041,120]
[356917152,1743432683619,-620.53,0.00049041,120]
[356917153,1743432683665,-1313.12,0.00049041,120]
[356917154,1743432683709,-500.0,0.00049041,120]
[356917155,1743432683754,-500.0,0.00049041,120]
[356917156,1743432683798,-500.0,0.00049041,120]
[356917157,1743432683842,-500.0,0.00049041,120]
[356917158,1743432683886,-500.0,0.00049041,120]
[356917159,1743432683931,-872.99,0.00049041,120]
[356917160,1743432683974,-505.35,0.00049041,120]
[356917161,1743432684019,-500.0,0.00049041,120]
[356917162,1743432684065,-500.0,0.00049315,120]
[356917163,1743432684110,-500.0,0.00049315,120]
[356917164,1743432684154,-500.0,0.00049315,120]
[356917165,1743432684204,-500.0,0.00049315,120]
[356917166,1743432684250,-500.0,0.00049315,120]
[356917167,1743432684294,-500.0,0.00049315,120]
[356917168,1743432684341,-500.0,0.00049315,120]
[356917169,1743432684389,-500.0,0.00049315,120]
[356917170,1743432684435,-500.0,0.00049315,120]
[356917171,1743432684482,-500.0,0.00049315,120]
[356917172,1743432684532,-500.0,0.00049315,120]
[356917173,1743432684576,-500.0,0.00049315,120]
[356917174,1743432684622,-500.0,0.00049315,120]
[356917175,1743432684666,-500.0,0.00049315,120]
[356917176,1743432684711,-500.0,0.00049315,120]
[356917177,1743432684756,-500.0,0.00049315,120]
[356917178,1743432684803,-500.0,0.00049315,120]
[356917179,1743432684849,-500.0,0.00049315,120]
[356917180,1743432684893,-500.0,0.00049315,120]
[356917181,1743432684937,-500.0,0.00049315,120]
[356917182,1743432684984,-500.0,0.00049315,120]
[356917183,1743432685038,-500.0,0.00049315,120]
[356917184,1743432685086,-500.0,0.00049315,120]
[356917185,1743432685131,-500.0,0.00049315,120]
[356917186,1743432685178,-500.0,0.00049315,120]
[356917187,1743432685221,-500.0,0.00049315,120]
[356917188,1743432685264,-500.0,0.00049315,120]
[356917189,1743432685307,-500.0,0.00049315,120]
[356917190,1743432685351,-500.0,0.00049315,120]
[356917191,1743432685396,-500.0,0.00049315,120]
[356917192,1743432685439,-500.0,0.00049315,120]
[356917193,1743432685481,-500.0,0.00049315,120]
[356917194,1743432685525,-500.0,0.00049315,120]
[356917195,1743432685567,-500.0,0.00049315,120]
[356917196,1743432685613,-500.0,0.00049315,120]
[356917197,1743432685666,-500.0,0.00049315,120]
[356917198,1743432685713,-500.0,0.00049315,120]
[356917199,1743432685757,-500.0,0.00049315,120]
[356917200,1743432685802,-500.0,0.00049315,120]
[356917201,1743432685847,-500.0,0.00049315,120]
[356917202,1743432685891,-500.0,0.00049315,120]
[356917203,1743432685933,-260.77393858,0.00049315,120]
[356917204,1743432685975,-500.0,0.00049315,120]
[356917205,1743432686019,-500.0,0.00049315,120]
[356917206,1743432686066,-530.85,0.00049315,120]
[356917207,1743432686113,-500.0,0.00049315,120]
[356917208,1743432686170,-204.25,0.00049315,120]
[356917209,1743432686219,-500.0,0.00049315,120]
[356917210,1743432686261,-635.28870188,0.00049315,120]
[356917211,1743432686305,-500.0,0.00049315,120]
[356917212,1743432686348,-500.0,0.00049315,120]
[356917213,1743432686395,-500.0,0.00049315,120]
[356917214,1743432686583,-355.0693784,0.00049315,120]
[356917215,1743432686635,-500.0,0.00049315,120]
[356917216,1743432686682,-500.0,0.00049315,120]
[356917217,1743432686729,-500.0,0.00049315,120]
[356917218,1743432686776,-500.0,0.00049315,120]
[356917219,1743432686822,-500.0,0.00049315,120]
[356917220,1743432686867,-537.81,0.00049315,120]
[356917221,1743432686911,-500.0,0.00049315,120]
[356917222,1743432686954,-500.0,0.00049315,120]
[356917223,1743432687002,-500.0,0.00049315,120]
[356917224,1743432687046,-500.0,0.00049315,120]
[356917225,1743432687088,-500.0,0.00049315,120]
[356917226,1743432687132,-500.0,0.00049315,120]
[356917227,1743432687172,-500.0,0.00049315,120]
[356917228,1743432687215,-500.0,0.00049315,120]
[356917229,1743432687259,-500.0,0.00049315,120]
[356917230,1743432687305,-500.0,0.00049315,120]
[356917231,1743432687351,-500.0,0.00049315,120]
[356917232,1743432687396,-500.0,0.00049315,120]
[356917233,1743432687442,-567.44,0.00049315,120]
[356917234,1743432687487,-620.53,0.00049315,120]
[356917235,1743432687539,-1313.12,0.00049315,120]
[356917236,1743432687597,-500.0,0.00049315,120]
[356917237,1743432687649,-500.0,0.00049315,120]
[356917238,1743432687697,-500.0,0.00049315,120]
[356917239,1743432687748,-500.0,0.00049315,120]
[356917240,1743432687797,-500.0,0.00049315,120]
[356917241,1743432687844,-872.99,0.00049315,120]
[356917242,1743432687892,-500.0,0.00049315,120]
[356917243,1743432687939,-500.0,0.00049315,120]
[356917244,1743432687986,-500.0,0.00049315,120]
[356917245,1743432688035,-500.0,0.00049315,120]
[356917246,1743432688081,-500.0,0.00049315,120]
[356917247,1743432688127,-500.0,0.00049315,120]
[356917248,1743432688171,-500.0,0.00049315,120]
[356917249,1743432688213,-500.0,0.00049315,120]
[356917250,1743432688257,-500.0,0.00049315,120]
[356917251,1743432688302,-200.0,0.00049315,120]
[356917252,1743432688346,-750.389462,0.0004932,120]
[356917253,1743432688389,-750.389462,0.0004932,120]
[356917254,1743432688433,-177.79419072,0.00049495,36]
[356917255,1743432688477,-500.0,0.00049589,120]
[356917256,1743432688520,-500.0,0.00049589,120]
[356917257,1743432688563,-500.0,0.00049589,120]
[356917258,1743432688609,-350.9,0.00049589,120]
[356917259,1743432688657,-500.0,0.00049589,120]
[356917260,1743432688701,-185.682489,0.00049589,120]
[356917261,1743432688742,-185.682489,0.00049589,120]
[356917262,1743432688786,-500.0,0.00049589,120]
[356917263,1743432688828,-648.913322,0.00049589,120]
[356917264,1743432688869,-648.913322,0.00049589,120]
[356917265,1743432688912,-500.0,0.00049589,120]
[356917266,1743432688956,-312.895497,0.00049589,120]
[356917267,1743432689004,-312.895497,0.00049589,120]
[356917268,1743432689049,-500.0,0.00049589,120]
[356917269,1743432689094,-500.0,0.00049589,120]
[356917270,1743432689137,-500.0,0.00049589,120]
[356917271,1743432689179,-500.0,0.00049589,120]
[356917272,1743432689224,-537.81,0.00049589,120]
[356917273,1743432689270,-323.68432705,0.00049589,120]
[356917274,1743432689316,-500.0,0.00049589,120]
[356917275,1743432689360,-567.44,0.00049589,120]
[356917276,1743432689407,-620.53,0.00049589,120]
[356917277,1743432689451,-1313.12,0.00049589,120]
[356917278,1743432689500,-500.0,0.00049589,120]
[356917279,1743432689546,-500.0,0.00049589,120]
[356917280,1743432689593,-500.0,0.00049589,120]
[356917281,1743432689639,-500.0,0.00049589,120]
[356917282,1743432689683,-500.0,0.00049589,120]
[356917283,1743432689846,-151.0,0.00049589,120]
[356917284,1743432689890,-151.0,0.00049589,120]
[356917285,1743432689935,-872.99,0.00049589,120]
[356917286,1743432689980,-216.72932671,0.00049589,120]
[356917287,1743432690026,-751.5297359,0.000497,40]
[356917288,1743432690067,-515.37437769,0.00049755,30]
[356917289,1743432690112,-160.11392448,0.00049763,120]
[356917290,1743432690155,-547.324384,0.00049794,120]
[356917291,1743432690196,-200.0,0.00049794,120]
[356917292,1743432690237,-335.0,0.000498,120]
[356917293,1743432690283,-152.35709704,0.000498,30]
[356917294,1743432690327,-500.0,0.00049863,120]
[356917295,1743432690368,-500.0,0.00049863,120]
[356917296,1743432690411,-500.0,0.00049863,120]
[356917297,1743432690456,-500.0,0.00049863,120]
[356917298,1743432690503,-577.9,0.00049863,120]
[356917299,1743432690548,-500.0,0.00049863,120]
[356917300,1743432690604,-500.0,0.00049863,120]
[356917301,1743432690658,-498.7904337,0.00049863,120]
[356917302,1743432690700,-500.0,0.00049863,120]
[356917303,1743432690744,-287.65,0.00049863,120]
[356917304,1743432690790,-537.81,0.00049863,120]
[356917305,1743432690834,-500.0,0.00049863,120]
[356917306,1743432690876,-567.44,0.00049863,120]
[356917307,1743432690920,-620.53,0.00049863,120]
[356917308,1743432690961,-1313.12,0.00049863,120]
[356917309,1743432691005,-209.67562404,0.00049863,120]
[356917310,1743432691049,-529.63390953,0.00049863,120]
[356917311,1743432691091,-513.77591353,0.00049863,120]
[356917312,1743432691134,-500.0,0.00049863,120]
[356917313,1743432691173,-500.0,0.00049863,120]
[356917314,1743432691214,-872.99,0.00049863,120]
[356917315,1743432691255,-269.80504379,0.00049887,30]
[356917316,1743432691297,-251.64333219,0.00049887,30]
[356917317,1743432691339,-150.0,0.00049887,30]
[356917318,1743432691382,-150.0,0.00049887,30]
[356917319,1743432691424,-846.74430347,0.00049887,30]
[356917320,1743432691465,-180.19358617,0.00049887,30]
[356917321,1743432691508,-210.0,0.0004989,30]
[356917322,1743432691556,-4711.84207772,0.000499,120]
[356917323,1743432691605,-4711.84207772,0.000499,120]
[356917324,1743432691658,-7619.38321207,0.0005,41]
[356917325,1743432691705,-649.0,0.0005,90]
[356917326,1743432691756,-895.00335145,0.0005,120]
[356917327,1743432691800,-970.0,0.0005,120]
[356917328,1743432691842,-443.17149485,0.0005,120]
[356917329,1743432691886,-1000000.0,0.0005,120]
[356917330,1743432691929,-68920.69524399,0.0005,30]
[356917331,1743432691970,-150.0,0.0005,60]
[356917332,1743432692013,-1710.67948273,0.0005,120]
[356917333,1743432692056,-244.284742,0.0005,120]
[356917334,1743432692103,-232.522207,0.0005,120]
[356917335,1743432692150,-750.389462,0.0005,120]
[356917336,1743432692194,-750.389462,0.0005,120]
[356917337,1743432692239,-185.682489,0.0005,120]
[356917338,1743432692294,-185.682489,0.0005,120]
[356917339,1743432692340,-648.913322,0.0005,120]
[356917340,1743432692387,-648.913322,0.0005,120]
[356917341,1743432692433,-312.895497,0.0005,120]
[356917342,1743432692480,-312.895497,0.0005,120]
[356917343,1743432692528,-151.0,0.0005,120]
[356917344,1743432692572,-151.0,0.0005,120]
[356917345,1743432692618,-500.0,0.00050136,120]
[356917346,1743432692662,-500.0,0.00050136,120]
[356917347,1743432692708,-500.0,0.00050136,120]
[356917348,1743432692753,-500.0,0.00050136,120]
[356917349,1743432692884,-500.0,0.00050136,120]
[356917350,1743432692925,-500.0,0.00050136,120]
[356917351,1743432692964,-179.17,0.00050136,120]
[356917352,1743432693005,-537.81,0.00050136,120]
[356917353,1743432693053,-500.0,0.00050136,120]
[356917354,1743432693096,-567.44,0.00050136,120]
[356917355,1743432693140,-620.53,0.00050136,120]
[356917356,1743432693184,-1313.12,0.00050136,120]
[356917357,1743432693233,-500.0,0.00050136,120]
[356917358,1743432693279,-435.14341273,0.00050136,120]
[356917359,1743432693325,-872.99,0.00050136,120]
[356917360,1743432693370,-500.0,0.0005038,60]
[356917361,1743432693414,-500.0,0.0005041,120]
[356917362,1743432693460,-500.0,0.0005041,120]
[356917363,1743432693506,-500.0,0.0005041,120]
[356917364,1743432693553,-500.0,0.0005041,120]
[356917365,1743432693601,-500.0,0.0005041,120]
[356917366,1743432693650,-500.0,0.0005041,120]
[356917367,1743432693700,-537.81,0.0005041,120]
[356917368,1743432693747,-567.44,0.0005041,120]
[356917369,1743432693793,-500.0,0.0005041,120]
[356917370,1743432693838,-620.53,0.0005041,120]
[356917371,1743432693880,-1313.12,0.0005041,120]
[356917372,1743432693925,-500.0,0.0005041,120]
[356917373,1743432693971,-872.99,0.0005041,120]
[356917374,1743432694015,-562.6074407,0.000505,120]
[356917375,1743432694058,-750.389462,0.000506,120]
[356917376,1743432694104,-750.389462,0.000506,120]
[356917377,1743432694149,-185.682489,0.000506,120]
[356917378,1743432694193,-185.682489,0.000506,120]
[356917379,1743432694237,-648.913322,0.000506,120]
[356917380,1743432694287,-648.913322,0.000506,120]
[356917381,1743432694334,-312.895497,0.000506,120]
[356917382,1743432694381,-312.895497,0.000506,120]
[356917383,1743432694428,-310.038853,0.000506,120]
[356917384,1743432694475,-151.0,0.000506,120]
[356917385,1743432694520,-170.997903,0.000506,120]
[356917386,1743432694565,-500.0,0.00050684,120]
[356917387,1743432694610,-500.0,0.00050684,120]
[356917388,1743432694654,-500.0,0.00050684,120]
[356917389,1743432694703,-180.1,0.00050684,120]
[356917390,1743432694749,-500.0,0.00050684,120]
[356917391,1743432694794,-500.0,0.00050684,120]
[356917392,1743432694837,-537.81,0.00050684,120]
[356917393,1743432694881,-500.0,0.00050684,120]
[356917394,1743432694926,-567.44,0.00050684,120]
[356917395,1743432694972,-620.53,0.00050684,120]
[356917396,1743432695018,-1313.12,0.00050684,120]
[356917397,1743432695065,-500.0,0.00050684,120]
[356917398,1743432695110,-872.99,0.00050684,120]
[356917399,1743432695153,-150.0,0.000508,120]
[356917400,1743432695197,-150.0,0.00050881,120]
[356917401,1743432695241,-4711.84207772,0.000509,120]
[356917402,1743432695292,-198.510231,0.000509,120]
[356917403,1743432695336,-198.510231,0.000509,120]
[356917404,1743432695382,-198.51,0.000509,120]
[356917405,1743432695425,-154.39684633,0.000509,120]
[356917406,1743432695471,-154.39684633,0.000509,120]
[356917407,1743432695515,-154.39684633,0.000509,120]
[356917408,1743432695559,-154.39684633,0.000509,120]
[356917409,1743432695601,-774.3997069,0.000509,120]
[356917410,1743432695647,-774.3997069,0.000509,120]
[356917411,1743432695692,-774.3997069,0.000509,120]
[356917412,1743432695741,-774.3997069,0.000509,120]